bitfinex/quotes_ETHUSD_20240630
["timestamp","ask_amount","ask_price","bid_price","bid_amount"]
[1719757928382,0.847,3404.2,3403.6,2.4274]
[1719757929626,3.0,3404.3,3403.6,2.75484]
[1719757929858,7.33,3404.4,3403.8,2.3782]
[1719757931494,7.33,3404.4,3403.8,3.2252]
[1719757931696,7.33,3404.4,3403.9,2.3782]
[1719757932519,7.33,3404.4,3403.9,2.4369511]
[1719757932836,7.33,3404.4,3404.1,2.3782]
[1719757933192,2.3931,3405.1,3404.1,2.3782]
[1719757933193,7.33,3404.9,3404.3,0.847]
[1719757933392,2.3931,3405.1,3404.3,0.847]
[1719757933649,2.3931,3405.1,3404.1,2.3782]
[1719757933957,0.847,3404.5,3403.1,2.3782]
[1719757934091,0.847,3404.5,3403.7,2.3782]
[1719757935930,0.847,3404.3,3403.7,2.3782]
[1719757936598,0.847,3404.4,3403.7,2.3782]
[1719757940737,0.847,3404.4,3403.3,3.0]
[1719757940738,0.847,3404.8,3404.0,2.3782]
[1719757940925,0.847,3404.8,3404.1,0.32252]
[1719757941133,0.847,3404.6,3404.1,0.32252]
[1719757941638,0.847,3404.8,3404.1,0.32252]
[1719757942837,0.847,3404.6,3404.1,0.32252]
[1719757944940,0.847,3404.4,3404.0,2.3782]
[1719757945250,2.3931,3404.7,3403.4,2.3782]
[1719757945251,0.847,3404.2,3403.4,2.3782]
[1719757946014,0.847,3404.2,3403.4,5.3782]
[1719757946324,0.847,3403.7,3403.4,2.3782]
[1719757947358,0.847,3403.7,3402.9,2.3782]
[1719757947535,9.7231,3404.2,3402.9,2.3782]
[1719757947727,0.847,3403.7,3402.9,2.3782]
[1719757950685,1.01442716,3404.1,3402.9,2.3782]
[1719757951149,0.847,3403.9,3403.0,0.847]
[1719757951842,0.30733883,3403.8,3403.0,0.847]
[1719757952243,0.847,3403.9,3403.0,0.847]
[1719757952987,0.847,3403.9,3403.1,2.3127]
[1719757953284,0.847,3403.9,3403.1,2.62867]
[1719757954800,0.847,3403.7,3403.1,2.62867]
[1719757954981,0.847,3403.7,3403.1,2.3127]
[1719757958171,0.847,3403.5,3403.1,2.3127]
[1719757958871,0.847,3403.3,3403.1,2.3127]
[1719757959773,0.847,3403.3,3402.8,2.3127]
[1719757961204,0.847,3403.5,3402.8,2.3127]
[1719757961357,2.282,3403.7,3402.8,2.3127]
[1719757961358,0.847,3403.3,3402.8,2.3127]
[1719757968377,0.2282,3403.6,3402.4,2.3127]
[1719757968566,0.847,3403.0,3402.4,2.3127]
[1719757970520,0.42117163,3403.5,3401.5,2.2517]
[1719757970521,0.847,3402.5,3401.5,2.2517]
[1719757970693,0.847,3402.3,3401.9,1.177379]
[1719757971013,0.847,3402.3,3401.5,2.2517]
[1719757971196,0.847,3402.3,3401.6,0.30987]
[1719757971884,0.847,3402.3,3401.6,3.30987]
[1719757972214,0.847,3402.3,3401.6,0.30987]
[1719757972702,0.847,3402.3,3401.6,3.30987]
[1719757972904,0.847,3402.5,3401.6,3.30987]
[1719757973123,0.847,3402.5,3401.7,0.7586096]
[1719757975318,7.33,3402.9,3401.9,2.2517]
[1719757975499,0.847,3402.8,3401.9,2.2517]
[1719757975902,7.33,3402.9,3401.9,2.2517]
[1719757976218,0.847,3402.8,3402.0,0.38573096]
[1719757978893,9.4411,3402.9,3402.0,0.38573096]
[1719757979104,0.847,3402.7,3402.0,0.38573096]
[1719757981300,0.847,3402.5,3402.0,0.38573096]
[1719757981778,9.4411,3402.9,3402.0,0.38573096]
[1719757981979,0.847,3402.5,3402.1,0.2637431]
[1719757984834,9.4411,3402.9,3402.1,0.2637431]
[1719757985141,0.847,3402.6,3402.1,0.2637431]
[1719757985706,9.4411,3402.9,3402.1,0.2637431]
[1719757985883,0.847,3402.6,3402.1,0.2637431]
[1719757991429,0.847,3402.6,3401.9,2.2517]
[1719757992991,0.847,3402.4,3401.9,2.2517]
[1719757993205,0.847,3402.4,3400.6,9.15427313]
[1719757993206,0.847,3402.2,3400.6,9.15427313]
[1719757993406,0.847,3402.2,3401.2,0.847]
[1719757993637,0.847,3402.2,3401.3,2.3074]
[1719757993841,0.847,3402.2,3401.3,5.3074]
[1719757994215,0.847,3402.1,3401.3,2.3074]
[1719757994395,0.847,3402.1,3401.4,0.31544]
[1719757996048,2.405,3402.4,3401.4,0.31544]
[1719757996249,0.41779043,3402.7,3401.6,2.3074]
[1719757996250,0.847,3402.3,3401.6,2.3074]
[1719757996417,0.847,3402.5,3401.8,2.3074]
[1719757996803,3.0,3402.8,3401.8,3.1544]
[1719757997035,0.847,3402.7,3401.9,2.3074]
[1719757999048,3.0,3402.8,3402.0,2.36618868]
[1719757999285,3.847,3402.8,3402.0,2.3074]
[1719757999412,0.847,3402.8,3402.0,2.3074]
[1719758000401,0.847,3402.6,3401.9,0.31544]
[1719758000601,0.847,3402.6,3401.7,2.3074]
[1719758001232,0.847,3402.4,3401.7,2.3074]
[1719758005347,2.405,3402.7,3401.7,2.3074]
[1719758005668,0.847,3402.4,3401.7,2.3074]
[1719758007726,0.847,3402.2,3401.7,2.3074]
[1719758008744,0.40243002,3402.6,3401.7,2.3074]
[1719758008745,0.847,3402.0,3401.7,2.3074]
[1719758008946,0.40243002,3402.6,3401.7,2.3074]
[1719758009175,0.847,3402.1,3401.7,2.3074]
[1719758010239,0.847,3402.1,3401.3,2.2509]
[1719758010561,0.847,3402.1,3401.3,2.86069]
[1719758013289,2.3788,3402.2,3401.3,2.86069]
[1719758013492,0.847,3402.0,3401.3,2.86069]
[1719758013857,0.847,3402.0,3401.3,2.2509]
[1719758015818,0.847,3401.8,3401.3,2.2509]
[1719758016972,0.847,3401.6,3401.1,2.2509]
[1719758027298,0.847,3401.6,3400.9,2.2509]
[1719758027598,0.847,3401.6,3400.9,2.85158062]
[1719758028857,0.847,3401.6,3401.0,5.8802]
[1719758032606,2.3788,3401.8,3401.0,5.8802]
[1719758032809,0.847,3401.7,3401.0,5.8802]
[1719758033006,0.847,3401.7,3401.1,1.17317806]
[1719758033335,2.3788,3401.8,3401.1,1.17317806]
[1719758033537,9.6668,3402.0,3401.2,2.4225]
[1719758033708,10.5138,3402.0,3401.2,2.4225]
[1719758033903,10.5138,3402.0,3401.3,1.03228781]
[1719758037953,0.847,3402.0,3401.4,2.4225]
[1719758038669,0.847,3401.9,3401.4,2.4225]
[1719758038875,0.847,3401.9,3401.4,2.88529659]
[1719758039874,3.0,3402.3,3401.4,2.88529659]
[1719758040086,0.847,3401.8,3401.4,2.88529659]
[1719758048379,3.0,3402.3,3401.4,2.88529659]
[1719758048687,0.847,3401.9,3401.4,2.88529659]
[1719758048893,0.847,3401.9,3401.5,0.39763793]
[1719758052444,0.847,3401.9,3401.4,2.4225]
[1719758054147,0.847,3401.7,3401.4,2.4225]
[1719758054650,0.847,3401.7,3401.0,8.1354]
[1719758060280,2.4084,3402.0,3401.0,8.1354]
[1719758060431,0.847,3401.3,3401.0,8.1354]
[1719758061379,0.847,3401.3,3401.0,5.8802]
[1719758068469,2.4084,3401.6,3401.0,5.8802]
[1719758068470,0.847,3401.1,3401.0,5.8802]
[1719758068646,3.2554,3401.1,3401.0,5.8802]
[1719758069934,3.58094,3401.1,3401.0,5.8802]
[1719758073823,3.79497956,3401.1,3399.9,7.32]
[1719758074028,0.847,3400.6,3400.0,3.0]
[1719758074282,0.847,3400.6,3399.9,5.4499]
[1719758074596,0.847,3400.6,3400.0,0.7475014]
[1719758074865,0.847,3400.6,3400.0,3.7475014]
[1719758076777,3.0,3401.8,3399.4,2.4499]
[1719758076778,0.847,3400.1,3399.4,2.4499]
[1719758078239,0.847,3400.1,3399.4,5.4499]
[1719758079393,2.3912,3400.5,3399.4,5.4499]
[1719758079394,0.847,3400.2,3399.4,5.4499]
[1719758079631,0.847,3400.2,3399.5,0.6628168]
[1719758080606,2.3912,3400.5,3399.6,2.4499]
[1719758080750,0.847,3400.3,3399.6,2.4499]
[1719758081308,3.2382,3400.7,3399.7,0.847]
[1719758081582,3.2382,3400.7,3399.8,0.39597168]
[1719758081897,3.2382,3400.7,3399.9,2.4499]
[1719758085609,2.3912,3401.1,3400.1,2.4499]
[1719758085757,0.847,3400.9,3400.1,2.4499]
[1719758085962,0.847,3400.9,3400.2,0.33557201]
[1719758086187,0.847,3400.7,3400.1,0.05881554]
[1719758086506,0.847,3400.7,3399.9,2.4499]
[1719758087005,0.847,3400.7,3399.9,3.2969]
[1719758087819,0.847,3400.9,3399.9,3.2969]
[1719758087977,0.847,3400.9,3400.0,0.32969]
[1719758088610,0.847,3400.7,3400.0,0.32969]
[1719758093365,0.847,3400.8,3400.0,0.38850568]
[1719758093565,0.847,3400.8,3400.1,2.3853]
[1719758097546,0.847,3400.6,3400.1,2.3853]
[1719758100352,0.847,3400.6,3399.8,2.4807]
[1719758100644,0.847,3400.4,3399.8,2.4807]
[1719758102225,0.847,3400.4,3399.4,3.0]
[1719758102226,0.847,3400.4,3399.5,2.4807]
[1719758102410,0.847,3400.4,3399.6,0.6658968]
[1719758104516,0.847,3400.2,3399.5,2.4807]
[1719758106113,7.177,3400.7,3399.5,2.4807]
[1719758106114,0.847,3400.0,3399.5,2.4807]
[1719758106514,0.847,3400.0,3399.2,2.4807]
[1719758106823,0.847,3400.0,3399.3,0.3659059]
[1719758107032,0.847,3399.8,3399.2,2.4807]
[1719758107955,2.4451,3400.1,3399.2,2.4807]
[1719758107956,0.847,3400.0,3399.2,2.4807]
[1719758112910,0.847,3400.0,3399.0,2.2684]
[1719758114300,0.847,3399.8,3399.0,2.2684]
[1719758115529,2.4665,3399.7,3399.0,2.2684]
[1719758116009,0.847,3399.6,3399.0,2.2684]
[1719758118094,0.847,3399.7,3399.0,2.2684]
[1719758118316,0.847,3399.7,3399.1,0.22684]
[1719758118809,0.847,3399.7,3399.1,2.49524]
[1719758119009,0.847,3399.7,3399.1,2.2684]
[1719758123010,0.847,3399.9,3399.1,2.2684]
[1719758123218,2.4665,3400.0,3399.1,2.2684]
[1719758123534,0.847,3400.0,3399.2,2.2684]
[1719758123823,0.847,3400.0,3399.3,0.28566952]
[1719758124001,3.0,3400.2,3399.4,2.2684]
[1719758124199,0.847,3400.1,3399.4,2.2684]
[1719758124528,3.847,3400.2,3399.4,2.60850695]
[1719758124727,2.4665,3400.5,3399.4,2.60850695]
[1719758124728,0.847,3400.3,3399.4,2.60850695]
[1719758126435,0.847,3400.1,3399.4,2.2684]
[1719758126686,0.847,3400.1,3398.9,0.847]
[1719758126687,0.847,3399.9,3398.9,0.847]
[1719758126836,0.847,3399.9,3399.0,2.2684]
[1719758127036,0.847,3399.9,3399.0,2.49524]
[1719758127574,0.847,3399.7,3399.0,2.49524]
[1719758129904,0.847,3400.0,3399.0,2.49524]
[1719758130188,3.2409,3400.0,3399.0,2.49524]
[1719758131378,3.0,3400.2,3399.1,0.847]
[1719758131583,0.847,3400.1,3399.2,2.3387]
[1719758131887,0.847,3400.1,3399.3,0.05218745]
[1719758132089,3.0,3400.2,3399.4,2.3387]
[1719758132291,0.847,3399.9,3399.4,2.3387]
[1719758132792,0.847,3399.9,3399.5,0.05218745]
[1719758135529,0.847,3399.6,3399.5,0.05218745]
[1719758135699,0.847,3399.6,3398.9,2.3387]
[1719758136011,0.847,3399.6,3399.0,0.05217449]
[1719758141183,0.847,3399.4,3399.0,0.05217449]
[1719758142420,0.847,3399.6,3399.0,0.05217449]
[1719758142583,3.41779043,3400.2,3399.0,0.35010009]
[1719758142767,3.41779043,3400.2,3399.1,2.3387]
[1719758142768,0.847,3399.8,3399.1,2.3387]
[1719758143168,0.847,3399.8,3399.2,0.05221153]
[1719758144775,5.3939,3400.2,3399.2,0.05221153]
[1719758144975,0.847,3399.8,3399.2,0.05221153]
[1719758145217,5.3939,3400.2,3399.3,2.3387]
[1719758145218,3.0,3400.2,3399.3,2.3387]
[1719758145527,0.847,3400.0,3399.4,0.05223929]
[1719758146022,3.0,3400.2,3399.4,0.05223929]
[1719758146220,0.847,3399.9,3399.4,0.05223929]
[1719758146590,0.847,3399.9,3399.3,2.3387]
[1719758146796,0.847,3399.9,3399.5,0.05223929]
[1719758147112,0.847,3399.9,3399.6,0.05223929]
[1719758147418,0.847,3399.9,3399.3,2.3387]
[1719758147637,0.847,3399.9,3399.7,0.05223929]
[1719758147786,0.847,3399.9,3399.3,2.3387]
[1719758148005,0.847,3399.9,3399.8,0.05223929]
[1719758148187,1.2317,3399.9,3399.3,2.3387]
[1719758148397,0.847,3399.9,3399.3,2.3387]
[1719758148593,0.847,3399.9,3399.4,0.05223929]
[1719758148992,3.0,3400.2,3399.3,2.3387]
[1719758149212,3.0,3400.2,3399.6,2.4088]
[1719758149381,0.21407836,3400.1,3399.6,2.4088]
[1719758149582,3.847,3400.2,3399.7,0.05223929]
[1719758150073,3.0,3400.2,3399.7,0.05223929]
[1719758150234,0.847,3400.1,3399.7,0.05223929]
[1719758150536,3.0,3400.2,3399.7,0.05223929]
[1719758150695,3.847,3400.2,3399.7,0.05223929]
[1719758151712,2.4056,3400.7,3399.7,0.05223929]
[1719758151927,0.847,3400.4,3399.8,2.4088]
[1719758152083,0.847,3400.4,3399.9,0.05223929]
[1719758152286,3.0,3400.6,3399.9,0.05223929]
[1719758152523,1.06106066,3400.5,3399.9,0.05223929]
[1719758152735,0.21406066,3400.4,3399.8,2.4088]
[1719758153248,1.19366607,3400.5,3399.8,2.4088]
[1719758154431,0.847,3400.5,3399.8,2.4088]
[1719758154641,0.847,3400.3,3399.8,2.4088]
[1719758155034,0.847,3400.3,3399.9,0.05223929]
[1719758157006,0.847,3400.3,3399.8,2.4088]
[1719758158049,0.847,3399.9,3398.8,2.4088]
[1719758158254,0.3847,3400.3,3399.2,2.4088]
[1719758158255,0.847,3400.1,3399.2,2.4088]
[1719758158550,0.847,3400.1,3399.4,2.4088]
[1719758158871,0.847,3400.1,3399.5,0.05215783]
[1719758159343,0.847,3400.1,3399.5,0.11098173]
[1719758163198,0.847,3400.1,3399.5,0.05215783]
[1719758164710,0.847,3399.9,3399.5,0.05215783]
[1719758165065,0.847,3399.9,3399.4,2.4088]
[1719758165508,0.847,3399.9,3399.5,0.0521356]
[1719758166645,0.95826,3400.2,3399.5,0.0521356]
[1719758166646,0.847,3399.7,3399.5,0.0521356]
[1719758167009,0.847,3399.7,3399.1,2.4088]
[1719758167515,0.847,3399.7,3399.2,0.05214857]
[1719758171844,0.847,3399.9,3399.2,0.05214857]
[1719758172020,1.027526,3399.9,3399.2,0.05214857]
[1719758172228,0.847,3399.9,3399.2,0.05214857]
[1719758172918,2.2641,3399.8,3399.2,0.05214857]
[1719758173125,0.847,3399.5,3399.1,2.4088]
[1719758173352,0.847,3399.5,3399.2,0.05222447]
[1719758174911,0.847,3399.5,3398.9,2.2866]
[1719758175165,0.847,3399.5,3399.0,0.05227448]
[1719758175338,1.15811,3399.5,3399.0,0.05227448]
[1719758177452,0.847,3399.5,3399.0,0.05227448]
[1719758182498,0.847,3399.1,3399.0,0.05227448]
[1719758182778,0.847,3399.1,3398.5,2.2866]
[1719758182993,2.2641,3399.6,3398.6,0.05228189]
[1719758183295,0.847,3399.2,3398.5,2.2866]
[1719758183955,3.2818,3399.6,3398.5,2.2866]
[1719758184173,0.847,3399.4,3398.5,2.2866]
[1719758184386,0.41779043,3400.0,3398.5,2.2866]
[1719758184387,7.177,3400.7,3399.3,0.847]
[1719758184681,1.06107567,3400.6,3399.4,2.2866]
[1719758184884,0.847,3400.6,3399.5,1.07566]
[1719758185087,0.847,3400.6,3399.5,1.12806232]
[1719758185293,0.847,3400.6,3399.5,0.28106232]
[1719758185464,0.847,3400.6,3399.6,0.847]
[1719758185647,0.847,3400.6,3399.6,0.89929118]
[1719758186063,0.847,3400.6,3399.7,0.05882122]
[1719758186665,0.847,3400.6,3399.8,0.05229118]
[1719758186869,3.0,3401.1,3399.8,0.05229118]
[1719758187070,1.97598993,3401.2,3399.8,2.34542122]
[1719758187071,0.847,3400.6,3399.8,2.34542122]
[1719758187264,0.847,3400.9,3399.9,0.05229118]
[1719758187593,0.77795647,3401.0,3400.0,0.90581775]
[1719758187904,0.77795647,3401.0,3400.2,0.847]
[1719758187905,0.847,3401.0,3400.2,0.847]
[1719758188295,0.847,3401.0,3400.2,0.90581325]
[1719758188452,3.0,3401.2,3400.3,0.11110443]
[1719758188648,0.847,3401.1,3400.3,0.11110443]
[1719758188881,0.847,3401.1,3400.3,0.05881325]
[1719758189197,0.847,3400.9,3400.3,0.05881325]
[1719758189557,0.847,3400.9,3400.1,0.05881188]
[1719758190448,3.0,3401.2,3400.1,0.05881188]
[1719758190649,0.847,3401.1,3400.2,0.847]
[1719758190848,0.847,3401.1,3400.3,0.0588119]
[1719758191592,0.847,3401.1,3400.1,0.05881191]
[1719758191908,0.847,3401.1,3400.1,0.37217191]
[1719758193116,0.847,3400.9,3400.1,0.37217191]
[1719758193599,0.847,3400.9,3400.2,0.05229118]
[1719758193801,0.847,3400.9,3400.2,0.1111031]
[1719758196378,3.0,3401.6,3400.2,0.1111031]
[1719758196583,0.847,3401.0,3400.2,0.05881192]
[1719758196922,0.847,3400.7,3399.8,2.284]
[1719758197228,0.847,3400.7,3399.9,0.28046151]
[1719758197379,0.847,3400.7,3399.9,1.12746151]
[1719758199529,3.0,3401.5,3400.0,2.34281198]
[1719758199673,0.847,3401.0,3400.0,2.34281198]
[1719758199877,0.847,3401.0,3400.1,1.19402735]
[1719758200080,0.847,3401.0,3400.2,0.05881194]
[1719758200762,0.847,3401.0,3400.3,0.05206151]
[1719758201034,0.847,3401.0,3400.3,0.11087345]
[1719758203363,0.847,3401.0,3400.3,0.05206151]
[1719758203551,0.847,3401.0,3400.1,0.34702735]
[1719758203739,0.847,3401.0,3400.2,0.26310273]
[1719758203934,0.847,3401.0,3400.2,0.31516424]
[1719758209306,0.847,3401.0,3400.2,0.05206151]
[1719758209456,0.847,3401.0,3400.0,3.131]
[1719758209659,0.847,3401.0,3400.3,0.05206151]
[1719758209896,0.847,3401.0,3400.0,3.131]
[1719758210208,0.847,3401.0,3400.4,0.05206151]
[1719758210503,0.847,3401.0,3400.5,0.05206151]
[1719758210886,0.847,3401.0,3400.0,3.131]
[1719758211087,0.847,3400.8,3400.6,0.05205968]
[1719758211266,0.847,3400.8,3400.0,3.131]
[1719758211472,0.847,3400.8,3400.7,0.05205968]
[1719758211694,0.847,3400.8,3400.0,3.131]
[1719758211860,0.847,3400.8,3400.7,0.05205968]
[1719758212056,0.847,3400.8,3400.0,3.131]
[1719758212258,0.847,3400.8,3400.7,0.05205968]
[1719758212459,0.847,3400.8,3400.0,3.131]
[1719758212689,0.847,3400.8,3400.7,0.05205968]
[1719758212963,0.847,3400.8,3400.0,3.131]
[1719758213378,0.847,3400.8,3400.1,0.05205968]
[1719758213574,0.847,3400.8,3400.1,0.48817635]
[1719758220888,3.0,3401.5,3400.2,0.05881208]
[1719758221088,0.847,3400.9,3400.3,2.4307]
[1719758221384,0.847,3400.9,3400.4,0.05207264]
[1719758221917,3.0,3401.5,3400.5,2.4307]
[1719758221918,0.847,3401.1,3400.5,2.4307]
[1719758222271,0.847,3401.1,3400.6,0.05207264]
[1719758222914,0.54841,3401.4,3400.6,0.05207264]
[1719758223155,1.39541,3401.4,3400.6,0.05207264]
[1719758223418,0.847,3401.2,3400.6,0.05207264]
[1719758223574,0.847,3401.2,3400.5,2.48950739]
[1719758223771,0.847,3401.2,3400.5,2.4307]
[1719758224200,0.847,3401.2,3400.6,0.05207264]
[1719758225844,0.847,3401.0,3400.6,0.05207264]
[1719758232623,0.847,3401.0,3400.5,2.4895074]
[1719758232834,0.847,3401.0,3400.5,2.4307]
[1719758240188,0.847,3401.0,3400.5,2.38450319]
[1719758240585,0.847,3401.0,3400.0,0.847]
[1719758240838,0.847,3401.0,3400.0,1.3495133]
[1719758241001,0.847,3401.0,3400.1,0.05203744]
[1719758243331,0.847,3401.0,3400.2,2.44]
[1719758243706,0.847,3401.0,3400.3,0.05203744]
[1719758259361,0.847,3400.8,3400.3,0.05203744]
[1719758259561,1.15686,3400.8,3400.2,2.44]
[1719758259768,0.847,3400.8,3400.4,0.05196895]
[1719758259940,0.847,3400.8,3400.2,2.44]
[1719758260141,0.847,3400.8,3400.5,0.05196895]
[1719758260652,0.847,3400.8,3400.6,0.05196895]
[1719758260867,0.847,3400.8,3400.2,2.44]
[1719758261075,0.847,3400.8,3400.3,0.05196895]
[1719758261275,0.847,3400.8,3400.2,2.44]
[1719758261453,0.847,3400.8,3400.4,0.05196895]
[1719758261655,1.15686,3400.8,3400.4,0.05196895]
[1719758261855,1.15686,3400.8,3400.2,2.44]
[1719758262154,0.847,3400.8,3400.3,0.05196895]
[1719758262683,2.3618,3400.7,3400.4,0.05196895]
[1719758262890,2.3618,3400.7,3399.9,3.2171]
[1719758263051,2.3618,3400.7,3400.5,0.05196895]
[1719758263431,2.3618,3400.7,3399.9,3.2171]
[1719758263626,2.3618,3400.7,3400.6,0.05196895]
[1719758264212,2.3618,3400.7,3399.9,3.2171]
[1719758264379,2.3618,3400.7,3400.6,0.05196895]
[1719758264915,2.3618,3400.7,3399.9,3.2171]
[1719758265126,2.3618,3400.7,3400.6,0.05196895]
[1719758265280,2.68268,3400.7,3399.9,3.2171]
[1719758265481,2.3618,3400.7,3400.6,0.05196895]
[1719758265841,2.3618,3400.7,3399.9,3.2171]
[1719758265994,2.3618,3400.7,3400.6,0.05196895]
[1719758266519,2.3618,3400.7,3399.9,3.2171]
[1719758266722,2.3618,3400.7,3400.6,0.05196895]
[1719758266930,2.3618,3400.7,3399.9,3.2171]
[1719758267105,2.3618,3400.7,3400.6,0.05196895]
[1719758267282,2.3618,3400.7,3399.9,3.2171]
[1719758267483,2.3618,3400.7,3400.6,0.05196895]
[1719758267720,2.3618,3400.7,3399.9,3.2171]
[1719758267721,2.68268,3400.7,3399.9,3.2171]
[1719758267903,2.3618,3400.7,3400.6,0.05196895]
[1719758268107,2.3618,3400.7,3399.9,3.2171]
[1719758268422,2.3618,3400.7,3400.6,0.05196895]
[1719758268609,2.3618,3400.7,3399.9,3.2171]
[1719758269097,2.3618,3400.7,3400.0,0.05196895]
[1719758270823,2.4178,3401.2,3400.1,0.847]
[1719758271028,2.4178,3401.2,3400.3,0.847]
[1719758271227,2.4178,3401.2,3400.4,0.05880765]
[1719758271415,2.4178,3401.2,3400.4,0.11077474]
[1719758272529,0.847,3401.1,3400.4,0.05196709]
[1719758272827,1.08878,3401.1,3400.4,0.05196709]
[1719758273132,1.08878,3401.1,3400.5,0.05196709]
[1719758273628,1.08878,3401.1,3400.2,2.4366]
[1719758273830,2.4178,3401.0,3400.6,0.05196709]
[1719758274002,0.847,3400.7,3399.3,0.847]
[1719758274206,3.0,3401.0,3399.3,2.02528]
[1719758274207,0.847,3400.3,3399.3,2.02528]
[1719758274511,0.847,3400.3,3399.4,0.0484693]
[1719758274832,0.847,3400.3,3399.5,0.45103493]
[1719758275324,0.847,3400.3,3399.6,0.0485378]
[1719758275489,2.4178,3400.6,3399.7,2.4366]
[1719758275698,0.847,3400.5,3399.7,2.4366]
[1719758275950,0.847,3400.5,3399.8,0.04855632]
[1719758279272,0.847,3400.3,3399.7,2.4366]
[1719758279445,0.847,3400.3,3399.8,0.0485378]
[1719758279653,0.847,3400.3,3399.7,2.4366]
[1719758279858,0.847,3400.3,3399.8,0.0485378]
[1719758280159,0.847,3400.3,3399.7,2.4366]
[1719758280360,0.847,3400.3,3399.9,0.0485378]
[1719758280579,0.847,3400.3,3399.7,2.4366]
[1719758280911,2.4178,3400.6,3399.7,2.81006349]
[1719758280912,0.847,3400.5,3399.7,2.81006349]
[1719758281058,0.847,3400.5,3399.8,0.0485378]
[1719758283365,2.4178,3400.6,3399.8,0.0485378]
[1719758283585,3.2648,3400.6,3399.8,0.0485378]
[1719758283972,2.4178,3400.6,3399.8,0.0485378]
[1719758284181,0.847,3400.7,3399.8,1.28757028]
[1719758284384,3.847,3401.0,3400.1,2.4366]
[1719758284575,3.847,3401.0,3400.2,0.05881265]
[1719758284770,3.847,3401.0,3400.2,0.10739118]
[1719758284971,0.847,3400.8,3400.2,0.05881265]
[1719758285800,0.847,3400.8,3400.1,2.4366]
[1719758286016,1.47348,3400.8,3400.1,2.4366]
[1719758287015,0.847,3400.6,3399.6,0.847]
[1719758287184,0.847,3400.6,3399.7,2.4366]
[1719758287385,0.847,3400.6,3399.7,2.48517853]
[1719758287610,1.236128,3400.6,3399.7,2.48517853]
[1719758291006,0.847,3400.4,3399.7,2.48517853]
[1719758292325,0.847,3400.0,3399.7,0.04857853]
[1719758292480,0.847,3400.0,3399.4,2.4639]
[1719758292817,0.847,3400.0,3399.5,0.04852532]
[1719758294601,2.3723,3400.3,3399.5,0.04852532]
[1719758294823,3.2193,3399.8,3399.5,0.04852532]
[1719758295000,3.2193,3399.8,3399.2,2.4639]
[1719758295509,3.2193,3399.8,3399.3,0.04695594]
[1719758296010,3.2193,3399.8,3399.2,2.4639]
[1719758296210,3.2193,3399.8,3399.4,0.04695594]
[1719758296411,3.2193,3399.8,3399.2,2.4639]
[1719758296611,3.2193,3399.8,3399.5,0.04695594]
[1719758296810,3.2193,3399.8,3399.2,2.4639]
[1719758297021,3.2193,3399.8,3399.6,0.04695594]
[1719758297209,3.2193,3399.8,3399.2,2.4639]
[1719758297423,3.2193,3399.8,3399.7,0.04695594]
[1719758297633,3.2193,3399.8,3399.2,2.4639]
[1719758297837,3.2193,3399.8,3399.7,0.04695594]
[1719758298002,3.2193,3399.8,3399.2,2.4639]
[1719758298206,3.2193,3399.8,3399.7,0.04695594]
[1719758298700,3.2193,3399.8,3399.2,2.4639]
[1719758298898,0.847,3399.3,3398.9,2.4639]
[1719758299208,0.847,3399.3,3398.7,0.61750728]
[1719758299209,0.847,3399.1,3398.7,0.61750728]
[1719758300212,0.847,3399.1,3398.4,2.2779]
[1719758300398,0.847,3399.1,3398.4,2.7082569]
[1719758301154,3.3176,3399.3,3398.4,2.7082569]
[1719758303446,0.847,3399.1,3398.2,1.178669]
[1719758303658,2.4706,3399.3,3398.1,2.2779]
[1719758303659,0.847,3398.9,3398.1,2.2779]
[1719758304029,2.4706,3399.3,3398.2,0.90584746]
[1719758304232,2.4706,3399.6,3398.5,0.847]
[1719758304591,0.847,3399.4,3398.7,2.2779]
[1719758304879,2.4706,3399.6,3398.7,2.2779]
[1719758305064,0.847,3399.5,3398.7,2.2779]
[1719758305271,2.4706,3399.9,3398.8,0.37721302]
[1719758305566,0.847,3399.6,3398.8,0.05883899]
[1719758305770,2.4706,3399.9,3399.0,2.2779]
[1719758305771,3.0,3399.8,3399.0,2.2779]
[1719758305945,3.0,3400.1,3399.1,0.90582908]
[1719758306131,2.4706,3400.3,3399.3,0.847]
[1719758306473,2.4706,3400.3,3399.5,2.2779]
[1719758306474,3.3176,3400.3,3399.5,2.2779]
[1719758306676,5.4706,3400.6,3399.6,0.05882282]
[1719758306834,0.847,3400.4,3399.6,0.05882282]
[1719758307034,0.847,3400.4,3399.5,3.1249]
[1719758307263,0.847,3400.2,3399.5,2.2779]
[1719758310346,0.847,3400.2,3399.6,0.04711523]
[1719758313835,0.847,3399.8,3399.6,0.04711523]
[1719758314158,0.847,3399.8,3399.7,0.04712079]
[1719758314367,0.847,3399.8,3398.9,2.4967]
[1719758314675,0.847,3399.8,3398.9,2.83107]
[1719758314878,0.847,3399.8,3399.0,0.04712079]
[1719758315180,0.847,3399.6,3399.0,0.04712079]
[1719758316343,0.847,3399.8,3399.0,0.04712079]